fUST/lending_fUST_20250719
["ID","MTS","AMOUNT","RATE_DAILY","PERIOD"]
[373190180,1752899448926,-151.0,0.00018367,2]
[373190193,1752899449047,-151.0,0.00018367,2]
[373190195,1752899449057,-151.0,0.00018367,2]
[373190197,1752899449067,-151.0,0.00018367,2]
[373190200,1752899449076,-151.0,0.00018367,2]
[373190201,1752899449086,-151.0,0.00018367,2]
[373190204,1752899449096,-151.0,0.00018367,2]
[373190206,1752899449106,-151.0,0.00018367,2]
[373190208,1752899449115,-151.0,0.00018367,2]
[373190210,1752899449125,-151.0,0.00018367,2]
[373190212,1752899449134,-151.492024,0.00018367,2]
[373190214,1752899449144,-151.0,0.00018367,2]
[373190216,1752899449153,-151.282927,0.00018368,2]
[373190218,1752899449163,-151.0,0.00018368,2]
[373190220,1752899449172,-151.0,0.00018368,2]
[373190222,1752899449181,-151.0,0.00018368,2]
[373190224,1752899449193,-151.0,0.00018368,2]
[373190226,1752899449202,-151.0,0.00018368,2]
[373190228,1752899449211,-151.0,0.00018368,2]
[373190230,1752899449220,-172.578056,0.00018368,2]
[373190232,1752899449230,-172.578056,0.00018368,2]
[373190234,1752899449239,-151.0,0.00018368,2]
[373190236,1752899449248,-290.592293,0.00018368,2]
[373190238,1752899449258,-290.592293,0.00018368,2]
[373190240,1752899449267,-151.0,0.00018368,2]
[373190242,1752899449276,-1201.486897,0.00018368,2]
[373190244,1752899449285,-1201.486897,0.00018368,2]
[373190246,1752899449294,-152.821105,0.00018368,2]
[373190248,1752899449305,-151.0,0.00018368,2]
[373190250,1752899449314,-151.0,0.00018368,2]
[373190252,1752899449323,-151.0,0.00018368,2]
[373190254,1752899449333,-160.040661,0.00018368,2]
[373190256,1752899449343,-160.040661,0.00018368,2]
[373190258,1752899449353,-151.0,0.00018368,2]
[373190260,1752899449362,-151.0,0.00018368,2]
[373190262,1752899449373,-460.0,0.00018415,2]
[373190264,1752899449384,-2389.79,0.00018416,2]
[373190266,1752899449394,-840.31,0.00018416,2]
[373190268,1752899449404,-1200.99,0.00018417,2]
[373190270,1752899449414,-3942.302754,0.00018422,2]
[373190273,1752899449424,-1573.54,0.0001843,2]
[373190274,1752899449433,-460.0,0.0001843,2]
[373190276,1752899449442,-856.61,0.0001843,2]
[373190278,1752899449451,-1108.86,0.0001843,2]
[373190280,1752899449460,-151.0,0.00018431,2]
[373190283,1752899449470,-152.06639,0.00018431,2]
[373190284,1752899449480,-305.40284297,0.00018477,2]
[373190286,1752899449491,-260.0,0.00018548,2]
[373190288,1752899449503,-3809.5421012,0.00018555,2]
[373190291,1752899449512,-500.0,0.00018628,2]
[373190292,1752899449522,-879.78,0.0001863,2]
[373190295,1752899449531,-151.0,0.0001863,2]
[373190296,1752899449541,-151.0,0.0001863,2]
[373190298,1752899449552,-460.0,0.0001863,2]
[373190301,1752899449562,-460.0,0.0001863,2]
[373190303,1752899449572,-460.0,0.0001863,2]
[373190305,1752899449581,-460.0,0.0001863,2]
[373190307,1752899449591,-590.65,0.0001863,2]
[373190308,1752899449600,-1104.32,0.0001863,2]
[373190310,1752899449610,-2089.51,0.0001863,2]
[373190312,1752899449620,-1535.63,0.0001863,2]
[373190315,1752899449630,-460.0,0.0001863,2]
[373190317,1752899449639,-473.86335677,0.0001863,2]
[373190318,1752899449648,-483.33,0.0001863,2]
[373190321,1752899449659,-1617.24,0.0001863,2]
[373190322,1752899449668,-460.0,0.0001863,2]
[373190325,1752899449679,-3749.11,0.0001863,2]
[373190327,1752899449689,-460.0,0.0001863,2]
[373190329,1752899449699,-1071.25,0.0001863,2]
[373190331,1752899449709,-460.0,0.0001863,2]
[373190333,1752899449718,-460.0,0.0001863,2]
[373190335,1752899449727,-293.51950427,0.0001863,2]
[373190337,1752899449736,-460.0,0.0001863,2]
[373190339,1752899449745,-460.0,0.0001863,2]
[373190341,1752899449754,-460.0,0.0001863,2]
[373190343,1752899449763,-460.0,0.0001863,2]
[373190345,1752899449773,-1814.82,0.0001863,2]
[373190347,1752899449781,-460.0,0.0001863,2]
[373190349,1752899449791,-460.0,0.0001863,2]
[373190351,1752899449800,-855.48,0.0001863,2]
[373190353,1752899449810,-460.0,0.0001863,2]
[373190355,1752899449820,-460.0,0.0001863,2]
[373190357,1752899449829,-460.0,0.0001863,2]
[373190359,1752899449838,-527.63,0.0001863,2]
[373190360,1752899449848,-543.63,0.0001863,2]
[373190362,1752899449857,-460.0,0.0001863,2]
[373190365,1752899449866,-460.0,0.00018689,2]
[373190367,1752899449876,-2389.79,0.0001869,2]
[373190369,1752899449885,-840.31,0.0001869,2]
[373190371,1752899449895,-1200.99,0.00018691,2]
[373190373,1752899449908,-1573.54,0.00018704,2]
[373190375,1752899449917,-460.0,0.00018704,2]
[373190377,1752899449927,-856.61,0.00018704,2]
[373190379,1752899449937,-1108.86,0.00018704,2]
[373190381,1752899449946,-3809.5421012,0.00018831,2]
[373190383,1752899449956,-589.76127044,0.00018893,2]
[373190385,1752899449966,-1445.0674579,0.000189,2]
[373190387,1752899449978,-500.0,0.00018902,2]
[373190389,1752899449988,-879.78,0.00018904,2]
[373190390,1752899449997,-460.0,0.00018904,2]
[373190391,1752899450007,-460.0,0.00018904,2]
[373190392,1752899450016,-460.0,0.00018904,2]
[373190393,1752899450025,-590.65,0.00018904,2]
[373190394,1752899450035,-2089.51,0.00018904,2]
[373190395,1752899450044,-1104.32,0.00018904,2]
[373190396,1752899450054,-1535.63,0.00018904,2]
[373190397,1752899450063,-460.0,0.00018904,2]
[373190398,1752899450072,-483.33,0.00018904,2]
[373190399,1752899450082,-1617.24,0.00018904,2]
[373190400,1752899450092,-460.0,0.00018904,2]
[373190401,1752899450102,-3749.11,0.00018904,2]
[373190402,1752899450111,-460.0,0.00018904,2]
[373190403,1752899450121,-1071.25,0.00018904,2]
[373190404,1752899450131,-460.0,0.00018904,2]
[373190405,1752899450141,-460.0,0.00018904,2]
[373190406,1752899450150,-460.0,0.00018904,2]
[373190407,1752899450160,-460.0,0.00018904,2]
[373190408,1752899450170,-460.0,0.00018904,2]
[373190409,1752899450179,-460.0,0.00018904,2]
[373190411,1752899450189,-1814.82,0.00018904,2]
[373190412,1752899450198,-460.0,0.00018904,2]
[373190414,1752899450207,-460.0,0.00018904,2]
[373190416,1752899450216,-855.48,0.00018904,2]
[373190418,1752899450226,-460.0,0.00018904,2]
[373190421,1752899450238,-460.0,0.00018904,2]
[373190423,1752899450253,-543.63,0.00018904,2]
[373190426,1752899450268,-217.5548031,0.00018904,2]
[373190428,1752899450282,-7356.9806417,0.00018913,2]
[373190430,1752899450293,-217.40428983,0.00018915,2]
[373190432,1752899450306,-25000.0,0.00018915,2]
[373190435,1752899450318,-151.0,0.00018915,2]
[373190437,1752899450330,-151.0,0.00018915,2]
[373190439,1752899450343,-262.51255,0.00018915,2]
[373190442,1752899450357,-262.51255,0.00018915,2]
[373190444,1752899450369,-151.847431,0.00018915,2]
[373190446,1752899450382,-151.0,0.00018915,2]
[373190449,1752899450397,-151.0,0.00018915,2]
[373190451,1752899450409,-151.0,0.00018915,2]
[373190453,1752899450420,-151.0,0.00018915,2]
[373190456,1752899450433,-151.0,0.00018915,2]
[373190458,1752899450443,-151.0,0.00018915,2]
[373190460,1752899450455,-151.0,0.00018915,2]
[373190462,1752899450467,-151.0,0.00018915,2]
[373190465,1752899450480,-151.0,0.00018915,2]
[373190467,1752899450493,-151.0,0.00018915,2]
[373190469,1752899450504,-500.0,0.00018921,2]
[373190472,1752899450517,-500.0,0.0001894,2]
[373190474,1752899450532,-460.0,0.00018963,2]
[373190476,1752899450545,-2389.79,0.00018964,2]
[373190478,1752899450557,-840.31,0.00018964,2]
[373190481,1752899450569,-1200.99,0.00018965,2]
[373190483,1752899450582,-1573.54,0.00018978,2]
[373190485,1752899450596,-460.0,0.00018978,2]
[373190488,1752899450608,-856.61,0.00018978,2]
[373190490,1752899450621,-1108.86,0.00018978,2]
[373190493,1752899450634,-151.0,0.00019072,2]
[373190495,1752899450646,-151.0,0.00019072,2]
[373190497,1752899450657,-151.0,0.00019072,2]
[373190499,1752899450668,-160.040661,0.00019072,2]
[373190501,1752899450679,-160.040661,0.00019072,2]
[373190503,1752899450691,-151.68369,0.00019072,2]
[373190506,1752899450706,-151.0,0.00019072,2]
[373190508,1752899450719,-360.0,0.00019096,2]
[373190510,1752899450731,-3809.5421012,0.00019107,2]
[373190513,1752899450742,-500.0,0.00019176,2]
[373190515,1752899450753,-151.0,0.00019178,2]
[373190517,1752899450765,-879.78,0.00019178,2]
[373190519,1752899450778,-151.862641,0.00019178,2]
[373190521,1752899450789,-151.0,0.00019178,2]
[373190524,1752899450800,-151.0,0.00019178,2]
[373190526,1752899450811,-151.0,0.00019178,2]
[373190528,1752899450822,-151.0,0.00019178,2]
[373190530,1752899450833,-185.983869,0.00019178,2]
[373190532,1752899450844,-172.578056,0.00019178,2]
[373190534,1752899450856,-172.578056,0.00019178,2]
[373190537,1752899450867,-151.0,0.00019178,2]
[373190539,1752899450879,-290.592293,0.00019178,2]
[373190541,1752899450890,-290.592293,0.00019178,2]
[373190543,1752899450906,-151.0,0.00019178,2]
[373190545,1752899450917,-151.0,0.00019178,2]
[373190547,1752899450927,-154.008574,0.00019178,2]
[373190550,1752899450938,-1201.486897,0.00019178,2]
[373190552,1752899450951,-1201.486897,0.00019178,2]
[373190554,1752899450962,-460.0,0.00019178,2]
[373190556,1752899450972,-460.0,0.00019178,2]
[373190558,1752899450985,-460.0,0.00019178,2]
[373190560,1752899450995,-590.65,0.00019178,2]
[373190562,1752899451007,-2089.51,0.00019178,2]
[373190564,1752899451018,-1535.63,0.00019178,2]
[373190567,1752899451030,-1104.32,0.00019178,2]
[373190569,1752899451041,-460.0,0.00019178,2]
[373190571,1752899451052,-483.33,0.00019178,2]
[373190573,1752899451062,-1617.24,0.00019178,2]
[373190575,1752899451074,-460.0,0.00019178,2]
[373190577,1752899451085,-3749.11,0.00019178,2]
[373190579,1752899451096,-526.17,0.00019178,2]
[373190582,1752899451107,-1071.25,0.00019178,2]
[373190584,1752899451119,-460.0,0.00019178,2]
[373190586,1752899451130,-460.0,0.00019178,2]
[373190588,1752899451141,-460.0,0.00019178,2]
[373190590,1752899451152,-460.0,0.00019178,2]
[373190593,1752899451164,-460.0,0.00019178,2]
[373190595,1752899451175,-477.7346262,0.00019178,2]
[373190597,1752899451188,-1814.82,0.00019178,2]
[373190599,1752899451199,-460.0,0.00019178,2]
[373190601,1752899451210,-460.0,0.00019178,2]
[373190603,1752899451221,-855.48,0.00019178,2]
[373190605,1752899451233,-460.0,0.00019178,2]
[373190608,1752899451245,-460.0,0.00019178,2]
[373190610,1752899451256,-543.63,0.00019178,2]
[373190612,1752899451267,-171.15023,0.00019178,2]
[373190614,1752899451278,-5000.0,0.00019178,2]
[373190617,1752899451290,-5000.0,0.00019178,2]
[373190619,1752899451302,-578.06420022,0.00019179,2]
[373190621,1752899451314,-900.24987284,0.00019179,2]
[373190623,1752899451326,-900.24987284,0.00019179,2]
[373190625,1752899451337,-900.24987284,0.00019179,2]
[373190627,1752899451348,-900.24987284,0.00019179,2]
[373190629,1752899451372,-900.24987284,0.00019179,2]
[373190632,1752899451383,-900.24987284,0.00019179,2]
[373190634,1752899451394,-900.24987284,0.00019179,2]
[373190636,1752899451407,-900.24987284,0.00019179,2]
[373190638,1752899451417,-900.24987284,0.00019179,2]
[373190640,1752899451429,-900.24987284,0.00019179,2]
[373190642,1752899451440,-900.24987284,0.00019179,2]
[373190645,1752899451450,-900.24987284,0.00019179,2]
[373190647,1752899451462,-900.24987284,0.00019179,2]
[373190649,1752899451473,-900.24987284,0.00019179,2]
[373190651,1752899451484,-900.24987284,0.00019179,2]
[373190653,1752899451495,-900.24987284,0.00019179,2]
[373190655,1752899451506,-900.24987284,0.00019179,2]
[373190658,1752899451517,-900.24987284,0.00019179,2]
[373190660,1752899451528,-700.0,0.00019186,2]
[373190662,1752899451539,-151.0,0.00019186,2]
[373190664,1752899451549,-151.490521,0.00019186,2]
[373190666,1752899451561,-151.0,0.00019186,2]
[373190669,1752899451572,-460.0,0.00019237,2]
[373190671,1752899451583,-2389.79,0.00019238,2]
[373190673,1752899451594,-840.31,0.00019238,2]
[373190675,1752899451605,-1200.99,0.00019239,2]
[373190677,1752899451616,-170.18971475,0.00019247,2]
[373190679,1752899451627,-150.44874067,0.00019247,2]
[373190682,1752899451638,-305.33086894,0.00019247,2]
[373190684,1752899451649,-1573.54,0.00019252,2]
[373190700,1752899451812,-460.0,0.00019252,2]
[373190703,1752899451834,-856.61,0.00019252,2]
[373190705,1752899451843,-1108.86,0.00019252,2]
[373190707,1752899451854,-158.09469489,0.00019329,2]
[373190709,1752899451863,-3809.5421012,0.00019383,2]
[373190711,1752899451873,-358.108017,0.00019416,2]
[373190713,1752899451883,-7356.9806417,0.00019446,2]
[373190715,1752899451893,-500.0,0.0001945,2]
[373190717,1752899451907,-879.78,0.00019452,2]
[373190719,1752899451917,-460.0,0.00019452,2]
[373190721,1752899451927,-205.23121424,0.00019452,2]
[373190723,1752899451937,-460.0,0.00019452,2]
[373190725,1752899451946,-590.65,0.00019452,2]
[373190728,1752899451956,-2089.51,0.00019452,2]
[373190730,1752899451966,-1535.63,0.00019452,2]
[373190732,1752899451976,-1104.32,0.00019452,2]
[373190734,1752899451986,-460.0,0.00019452,2]
[373190736,1752899451995,-483.33,0.00019452,2]
[373190737,1752899452004,-1617.24,0.00019452,2]
[373190740,1752899452014,-255.51,0.00019452,2]
[373190742,1752899452024,-3749.11,0.00019452,2]
[373190744,1752899452033,-1071.25,0.00019452,2]
[373190746,1752899452043,-460.0,0.00019452,2]
[373190748,1752899452052,-460.0,0.00019452,2]
[373190750,1752899452064,-460.0,0.00019452,2]
[373190752,1752899452073,-460.0,0.00019452,2]
[373190753,1752899452083,-460.0,0.00019452,2]
[373190755,1752899452092,-1814.82,0.00019452,2]
[373190758,1752899452101,-382.24,0.00019452,2]
[373190759,1752899452111,-460.0,0.00019452,2]
[373190762,1752899452122,-855.48,0.00019452,2]
[373190764,1752899452131,-460.0,0.00019452,2]
[373190766,1752899452141,-460.0,0.00019452,2]
[373190768,1752899452150,-543.63,0.00019452,2]
[373190770,1752899452160,-25000.0,0.00019463,2]
[373190772,1752899452170,-152.737409,0.00019463,2]
[373190774,1752899452179,-151.0,0.00019463,2]
[373190776,1752899452188,-174.020776,0.00019463,2]
[373190778,1752899452197,-151.0,0.00019463,2]
[373190780,1752899452207,-151.0,0.00019463,2]
[373190782,1752899452217,-151.0,0.00019463,2]
[373190784,1752899452227,-151.0,0.00019463,2]
[373190786,1752899452237,-151.0,0.00019463,2]
[373190788,1752899452247,-151.0,0.00019463,2]
[373190790,1752899452256,-255.736006,0.00019463,2]
[373190792,1752899452266,-1000.0,0.00019469,2]
[373190794,1752899452275,-1000.0,0.00019488,2]
[373190796,1752899452284,-460.0,0.00019511,2]
[373190797,1752899452294,-2389.79,0.00019512,2]
[373190799,1752899452304,-840.31,0.00019512,2]
[373190802,1752899452315,-1200.99,0.00019513,2]
[373190804,1752899452324,-1573.54,0.00019526,2]
[373190805,1752899452333,-460.0,0.00019526,2]
[373190808,1752899452344,-856.61,0.00019526,2]
[373190810,1752899452353,-1108.86,0.00019526,2]
[373190812,1752899452363,-151.498239,0.00019527,2]
[373190814,1752899452373,-151.0,0.00019527,2]
[373190816,1752899452383,-262.51255,0.00019527,2]
[373190818,1752899452392,-262.51255,0.00019527,2]
[373190820,1752899452402,-7356.9806417,0.00019585,2]
[373190822,1752899452411,-587.0,0.00019586,2]
[373190824,1752899452420,-618.97160078,0.00019611,2]
[373190826,1752899452429,-460.0,0.00019644,2]
[373190828,1752899452438,-4192.4025952,0.00019657,2]
[373190830,1752899452448,-3809.5421012,0.00019659,2]
[373190832,1752899452457,-151.0,0.000197,2]
[373190833,1752899452466,-500.0,0.000197,2]
[373190835,1752899452475,-500.0,0.000197,2]
[373190837,1752899452485,-501.51906247,0.000197,2]
[373190839,1752899452494,-501.04531724,0.000197,2]
[373190841,1752899452503,-500.0,0.00019724,2]
[373190843,1752899452513,-879.78,0.00019726,2]
[373190845,1752899452522,-416.85573044,0.00019726,2]
[373190847,1752899452532,-151.0,0.00019726,2]
[373190849,1752899452541,-460.0,0.00019726,2]
[373190852,1752899452551,-590.65,0.00019726,2]
[373190853,1752899452561,-151.0,0.00019726,2]
[373190855,1752899452572,-2089.51,0.00019726,2]
[373190857,1752899452581,-1535.63,0.00019726,2]
[373190859,1752899452590,-1104.32,0.00019726,2]
[373190861,1752899452600,-151.0,0.00019726,2]
[373190863,1752899452609,-160.040661,0.00019726,2]
[373190865,1752899452618,-160.040661,0.00019726,2]
[373190867,1752899452628,-460.0,0.00019726,2]
[373190869,1752899452637,-151.0,0.00019726,2]
[373190871,1752899452647,-483.33,0.00019726,2]
[373190873,1752899452656,-1617.24,0.00019726,2]
[373190875,1752899452666,-3749.11,0.00019726,2]
[373190878,1752899452676,-1071.25,0.00019726,2]
[373190880,1752899452685,-460.0,0.00019726,2]
[373190882,1752899452695,-460.0,0.00019726,2]
[373190884,1752899452706,-460.0,0.00019726,2]
[373190886,1752899452715,-460.0,0.00019726,2]
[373190888,1752899452724,-460.0,0.00019726,2]
[373190890,1752899452734,-1814.82,0.00019726,2]
[373190892,1752899452743,-285.7830551,0.00019726,2]
[373190894,1752899452753,-855.48,0.00019726,2]
[373190896,1752899452762,-460.0,0.00019726,2]
[373190898,1752899452771,-460.0,0.00019726,2]
[373190900,1752899452780,-543.63,0.00019726,2]
[373190902,1752899452790,-215.0738,0.00019736,2]
[373190904,1752899452799,-460.0,0.00019785,2]
[373190906,1752899452810,-2389.79,0.00019786,2]
[373190908,1752899452819,-840.31,0.00019786,2]
[373190910,1752899452829,-1200.99,0.00019787,2]
[373190912,1752899452838,-151.0,0.000198,2]
[373190914,1752899452847,-151.0,0.000198,2]
[373190916,1752899452856,-151.0,0.000198,2]
[373190918,1752899452866,-151.0,0.000198,2]
[373190920,1752899452875,-151.0,0.000198,2]
[373190922,1752899452885,-153.378373,0.000198,2]
[373190924,1752899452894,-151.0,0.000198,2]
[373190926,1752899452909,-152.480128,0.000198,2]
[373190928,1752899452919,-151.0,0.000198,2]
[373190930,1752899452928,-151.0,0.000198,2]
[373190932,1752899452937,-151.0,0.000198,2]
[373190934,1752899452947,-151.0,0.000198,2]
[373190937,1752899452956,-152.719308,0.000198,2]
[373190939,1752899452966,-151.0,0.000198,2]
[373190941,1752899452977,-159.334252,0.000198,2]
[373190943,1752899452987,-151.0,0.000198,2]
[373190944,1752899452996,-151.0,0.000198,2]
[373190947,1752899453006,-172.578056,0.000198,2]
[373190949,1752899453015,-172.578056,0.000198,2]
[373190951,1752899453024,-151.0,0.000198,2]
[373190952,1752899453034,-290.592293,0.000198,2]
[373190954,1752899453044,-290.592293,0.000198,2]
[373190957,1752899453053,-152.21559,0.000198,2]
[373190959,1752899453064,-151.0,0.000198,2]
[373190961,1752899453074,-1201.486897,0.000198,2]
[373190963,1752899453083,-1201.486897,0.000198,2]
[373190964,1752899453092,-1573.54,0.000198,2]
[373190967,1752899453103,-264.75417326,0.000198,2]
[373190969,1752899453112,-856.61,0.000198,2]
[373190971,1752899453123,-1108.86,0.000198,2]
[373190973,1752899453133,-548.0,0.00019846,2]
[373190975,1752899453143,-3809.5421012,0.00019934,2]
[373190977,1752899453152,-151.0,0.00019936,2]
[373190979,1752899453161,-548.0,0.00019936,2]
[373190981,1752899453170,-548.0,0.00019967,2]
[373190983,1752899453179,-7356.9806417,0.00019974,2]
[373190984,1752899453188,-47956.5651229,0.00019989,2]
[373190986,1752899453198,-202.10282225,0.00019998,2]
[373190988,1752899453207,-517.294,0.00019998,2]
[373190991,1752899453217,-879.78,0.0002,2]
[373190993,1752899453227,-5929.6672357,0.0002,2]
[373190994,1752899453236,-460.0,0.0002,2]
[373190996,1752899453245,-590.65,0.0002,2]
[373190998,1752899453255,-2089.51,0.0002,2]
[373191000,1752899453264,-1535.63,0.0002,2]
[373191003,1752899453274,-1104.32,0.0002,2]
[373191005,1752899453283,-460.0,0.0002,2]
[373191007,1752899453293,-483.33,0.0002,2]
[373191009,1752899453301,-1617.24,0.0002,2]
[373191011,1752899453312,-3749.11,0.0002,2]
[373191013,1752899453321,-1071.25,0.0002,2]
[373191015,1752899453330,-286.65138815,0.0002,2]
[373191017,1752899453340,-460.0,0.0002,2]
[373191019,1752899453350,-460.0,0.0002,2]
[373191021,1752899453360,-460.0,0.0002,2]
[373191023,1752899453371,-460.0,0.0002,2]
[373191025,1752899453380,-151.0,0.0002,2]
[373191027,1752899453390,-1814.82,0.0002,2]
[373191029,1752899453400,-855.48,0.0002,2]
[373191031,1752899453410,-460.0,0.0002,2]
[373191033,1752899453419,-151.0,0.0002,2]
[373191035,1752899453429,-460.0,0.0002,2]
[373191037,1752899453441,-151.0,0.0002,2]
[373191039,1752899453450,-543.63,0.0002,2]
[373191041,1752899453461,-25000.0,0.00020011,2]
[373191043,1752899453471,-151.0,0.00020011,2]
[373191045,1752899453481,-151.0,0.00020011,2]
[373191047,1752899453490,-151.0,0.00020011,2]
[373191049,1752899453500,-151.0,0.00020011,2]
[373191051,1752899453509,-1500.0,0.00020017,2]
[373191053,1752899453519,-1500.0,0.00020036,2]
[373191054,1752899453528,-460.0,0.00020059,2]
[373191056,1752899453537,-2389.79,0.0002006,2]
[373191058,1752899453547,-840.31,0.0002006,2]
[373191059,1752899453557,-1200.99,0.00020061,2]
[373191061,1752899453567,-1573.54,0.00020074,2]
[373191063,1752899453577,-856.61,0.00020074,2]
[373191065,1752899453586,-1108.86,0.00020074,2]
[373191067,1752899453596,-548.0,0.00020091,2]
[373191069,1752899453605,-151.0,0.00020101,2]
[373191071,1752899453615,-151.0,0.00020101,2]
[373191072,1752899453624,-589.76127044,0.00020171,2]
[373191074,1752899453634,-7356.9806417,0.00020174,2]
[373191076,1752899453644,-434.503001,0.00020187,2]
[373191078,1752899453654,-560.0,0.00020192,2]
[373191080,1752899453663,-3809.5421012,0.0002021,2]
[373191082,1752899453673,-548.0,0.00020213,2]
[373191083,1752899453682,-548.0,0.00020218,2]
[373191085,1752899453691,-151.0,0.00020234,2]
[373191087,1752899453701,-262.51255,0.00020234,2]
[373191089,1752899453711,-262.51255,0.00020234,2]
[373191091,1752899453720,-503.40908628,0.00020248,2]
[373191093,1752899453730,-501.15015757,0.00020248,2]
[373191095,1752899453739,-879.78,0.00020273,2]
[373191097,1752899453748,-460.0,0.00020273,2]
[373191098,1752899453757,-590.65,0.00020273,2]
[373191100,1752899453767,-2089.51,0.00020273,2]
[373191102,1752899453776,-1535.63,0.00020273,2]
[373191104,1752899453786,-1104.32,0.00020273,2]
[373191106,1752899453795,-460.0,0.00020273,2]
[373191108,1752899453804,-483.33,0.00020273,2]
[373191109,1752899453815,-1617.24,0.00020273,2]
[373191111,1752899453824,-3749.11,0.00020273,2]
[373191113,1752899453833,-1071.25,0.00020273,2]
[373191115,1752899453842,-460.0,0.00020273,2]
[373191117,1752899453851,-460.0,0.00020273,2]
[373191118,1752899453860,-201.74861646,0.00020273,2]
[373191120,1752899453870,-460.0,0.00020273,2]
[373191122,1752899453879,-1814.82,0.00020273,2]
[373191124,1752899453889,-855.48,0.00020273,2]
[373191126,1752899453900,-460.0,0.00020273,2]
[373191127,1752899453911,-460.0,0.00020273,2]
[373191129,1752899453920,-543.63,0.00020273,2]
[373191131,1752899453929,-700.0,0.00020282,2]
[373191133,1752899453939,-1292.0,0.00020309,2]
[373191135,1752899453949,-151.0,0.00020314,2]
[373191137,1752899453958,-151.0,0.00020314,2]
[373191138,1752899453968,-151.0,0.00020314,2]
[373191140,1752899453980,-160.040661,0.00020314,2]
[373191142,1752899453991,-160.040661,0.00020314,2]
[373191144,1752899454000,-151.0,0.00020314,2]
[373191146,1752899454010,-548.0,0.00020332,2]
[373191148,1752899454020,-151.0,0.00020333,2]
[373191149,1752899454031,-151.0,0.00020333,2]
[373191151,1752899454042,-151.0,0.00020333,2]
[373191153,1752899454052,-151.0,0.00020333,2]
[373191155,1752899454064,-198.453047,0.00020333,2]
[373191157,1752899454073,-460.0,0.00020333,2]
[373191159,1752899454083,-2389.79,0.00020334,2]
[373191161,1752899454093,-840.31,0.00020334,2]
[373191163,1752899454102,-1200.99,0.00020335,2]
[373191164,1752899454112,-1573.54,0.00020348,2]
[373191166,1752899454121,-856.61,0.00020348,2]
[373191168,1752899454131,-1108.86,0.00020348,2]
[373191170,1752899454141,-548.0,0.00020359,2]
[373191172,1752899454151,-7356.9806417,0.0002037,2]
[373191174,1752899454160,-548.0,0.00020379,2]
[373191176,1752899454170,-975.862606,0.00020404,8]
[373191178,1752899454179,-4809.0,0.00020406,2]
[373191180,1752899454188,-151.0,0.00020406,2]
[373191182,1752899454197,-151.315414,0.00020406,2]
[373191183,1752899454207,-151.0,0.00020406,2]
[373191185,1752899454216,-172.578056,0.00020406,2]
[373191187,1752899454225,-172.578056,0.00020406,2]
[373191189,1752899454235,-151.0,0.00020406,2]
[373191191,1752899454245,-290.592293,0.00020406,2]
[373191193,1752899454255,-290.592293,0.00020406,2]
[373191195,1752899454266,-240.388876,0.00020406,2]
[373191197,1752899454278,-1201.486897,0.00020406,2]
[373191199,1752899454287,-1201.486897,0.00020406,2]
[373191201,1752899454297,-151.0,0.00020406,2]